Workbook

Sheet Input
A1: Set Cell | B1: To Value | C1: By Changing Cell
A2: =calc!B6 -> 50.00000431 | B2: 50 | C2: =calc!B1 -> 0.6215777116
A3: =calc!C6 -> 50.00003431 | B3: 50 | C3: =calc!C1 -> 1.077169901
A4: =calc!D6 -> 50.00003543 | B4: 50 | C4: =calc!D1 -> 4.512510073
A5: =calc2!B6 -> 12.00006455 | B5: 12 | C5: =calc2!B1 -> 0.2830197379
A6: =calc2!C6 -> 12.00000347 | B6: 12 | C6: =calc2!C1 -> 0.3773585724
A7: =calc2!D6 -> 12.00000041 | B7: 12 | C7: =calc2!D1 -> 0.9813724476

Sheet calc
A1: wsCalc. | B1: 0.6215777116 | C1: 1.077169901 | D1: 4.512510073
A3: Formula | B3: =B1*5 -> 3.107888558 | C3: =C1*5 -> 5.385849505 | D3: 22.56255037
B4: =B3*1.12 -> 3.480835185 | C4: =C3*1.12 -> 6.032151446 | D4: 25.27005641
B5: =SUM(B3:B4)^2 -> 43.41128057 | C5: =SUM(C3:C4)^1.5 -> 38.58203336 | D5: =SUM(D3:D4)^0.2 -> 2.167428651
B6: =SUM(B3:B5) -> 50.00000431 | C6: =SUM(C3:C5) -> 50.00003431 | D6: =SUM(D3:D5) -> 50.00003543

Sheet calc2
A1: wsCalc. | B1: 0.2830197379 | C1: 0.3773585724 | D1: 0.9813724476
A3: Formula | B3: =B1*5 -> 1.415098689 | C3: =C1*5 -> 1.886792862 | D3: 4.906862238
B4: =B3*1.12 -> 1.584910532 | C4: =C3*1.12 -> 2.113208005 | D4: 5.495685706
B5: =SUM(B3:B4)^2 -> 9.00005533 | C5: =SUM(C3:C4)^1.5 -> 8.000002601 | D5: =SUM(D3:D4)^0.2 -> 1.59745247
B6: =SUM(B3:B5) -> 12.00006455 | C6: =SUM(C3:C5) -> 12.00000347 | D6: =SUM(D3:D5) -> 12.00000041

Sheet Help
A1: For more info, please go to: | B1: http://www.excelhelphq.com/
A2: Contact us at: | B2: excelhelphq@yahoo.com
